fUST/lending_fUST_20250127
["ID","MTS","AMOUNT","RATE_DAILY","PERIOD"]
[350506870,1737934264554,-583.08,0.00018538,2]
[350506871,1737934264564,-500.0,0.00018538,2]
[350506872,1737934264574,-500.0,0.00018538,2]
[350506873,1737934264583,-914.68,0.00018538,2]
[350506874,1737934264594,-637.95,0.00018538,2]
[350506875,1737934264604,-500.0,0.00018538,2]
[350506876,1737934264614,-2881.33,0.00018538,2]
[350506877,1737934264624,-536.46,0.00018539,2]
[350506878,1737934264634,-9168.88,0.00018539,2]
[350506879,1737934264644,-2533.96,0.00018539,2]
[350506880,1737934264654,-563.83756124,0.00018539,2]
[350506881,1737934264667,-1004.32,0.0001854,2]
[350506882,1737934264677,-500.0,0.00018547,2]
[350506883,1737934264687,-3534.84486335,0.00018555,2]
[350506884,1737934264697,-192.99,0.000186,2]
[350506885,1737934264707,-192.99,0.000186,2]
[350506886,1737934264718,-1000.0,0.00018613,2]
[350506887,1737934264728,-151.0,0.0001863,2]
[350506888,1737934264826,-500.0,0.0001863,2]
[350506889,1737934264836,-500.0,0.0001863,2]
[350506890,1737934264846,-500.0,0.0001863,2]
[350506891,1737934264855,-423.20726799,0.0001863,2]
[350506892,1737934264865,-237.43299605,0.0001863,2]
[350506893,1737934264875,-500.0,0.0001863,2]
[350506894,1737934264884,-1243.8,0.0001863,2]
[350506895,1737934264894,-583.08,0.00018675,2]
[350506896,1737934264903,-500.0,0.00018675,2]
[350506897,1737934264915,-500.0,0.00018675,2]
[350506898,1737934264924,-914.68,0.00018675,2]
[350506899,1737934264935,-637.95,0.00018675,2]
[350506900,1737934264946,-185.34,0.00018675,2]
[350506901,1737934264955,-2881.33,0.00018675,2]
[350506902,1737934264965,-536.46,0.00018676,2]
[350506903,1737934264975,-9168.88,0.00018676,2]
[350506904,1737934264984,-2533.96,0.00018676,2]
[350506905,1737934264994,-1004.32,0.00018677,2]
[350506906,1737934265003,-151.0,0.0001868,2]
[350506907,1737934265013,-151.0,0.0001868,2]
[350506908,1737934265024,-151.0,0.0001868,2]
[350506909,1737934265035,-500.0,0.00018712,2]
[350506910,1737934265045,-3534.84486335,0.00018762,2]
[350506911,1737934265054,-500.0,0.00018767,2]
[350506912,1737934265064,-1243.8,0.00018767,2]
[350506913,1737934265080,-405.50854343,0.000188,2]
[350506914,1737934265090,-151.0,0.000188,2]
[350506915,1737934265100,-510.7510937,0.000188,10]
[350506916,1737934265109,-583.08,0.00018812,2]
[350506917,1737934265119,-500.0,0.00018812,2]
[350506918,1737934265128,-500.0,0.00018812,2]
[350506919,1737934265138,-914.68,0.00018812,2]
[350506920,1737934265147,-637.95,0.00018812,2]
[350506921,1737934265159,-2881.33,0.00018812,2]
[350506922,1737934265171,-536.46,0.00018813,2]
[350506923,1737934265180,-9168.88,0.00018813,2]
[350506924,1737934265190,-2533.96,0.00018813,2]
[350506925,1737934265199,-1004.32,0.00018814,2]
[350506926,1737934265209,-500.0,0.00018821,2]
[350506927,1737934265218,-151.0,0.00018889,2]
[350506928,1737934265227,-151.0,0.000189,2]
[350506929,1737934265237,-151.0,0.000189,2]
[350506930,1737934265246,-301.575643,0.000189,2]
[350506931,1737934265255,-301.575643,0.000189,2]
[350506932,1737934265265,-151.0,0.000189,2]
[350506933,1737934265275,-151.0,0.000189,2]
[350506934,1737934265284,-151.0,0.000189,2]
[350506935,1737934265293,-500.0,0.00018904,2]
[350506936,1737934265302,-1243.8,0.00018904,2]
[350506937,1737934265312,-5000.0,0.00018904,7]
[350506938,1737934265322,-5000.0,0.00018904,2]
[350506939,1737934265332,-5000.0,0.00018904,2]
[350506940,1737934265342,-4689.85958478,0.00018904,2]
[350506941,1737934265352,-583.08,0.00018949,2]
[350506942,1737934265362,-500.0,0.00018949,2]
[350506943,1737934265372,-500.0,0.00018949,2]
[350506944,1737934265381,-914.68,0.00018949,2]
[350506945,1737934265391,-637.95,0.00018949,2]
[350506946,1737934265400,-2881.33,0.00018949,2]
[350506947,1737934265412,-536.46,0.0001895,2]
[350506948,1737934265422,-9168.88,0.0001895,2]
[350506949,1737934265431,-2533.96,0.0001895,2]
[350506950,1737934265441,-1004.32,0.00018951,2]
[350506951,1737934265450,-151.0,0.00018954,2]
[350506952,1737934265460,-151.0,0.00018954,2]
[350506953,1737934265469,-281.76531,0.00018954,2]
[350506954,1737934265478,-217.0,0.00018965,2]
[350506955,1737934265487,-3534.84486335,0.00018969,2]
[350506956,1737934265497,-787.57699219,0.0001899,2]
[350506957,1737934265506,-1255.43133822,0.00018998,2]
[350506958,1737934265516,-4905.89877297,0.00019,4]
[350506959,1737934265526,-6113.55475348,0.00019,10]
[350506960,1737934265535,-1595.56287905,0.00019,2]
[350506961,1737934265544,-5000.0,0.00019,2]
[350506962,1737934265553,-500.0,0.00019,2]
[350506963,1737934265562,-5000.0,0.00019,2]
[350506964,1737934265572,-600.0,0.00019,3]
[350506965,1737934265581,-1000.0,0.00019,19]
[350506966,1737934265591,-2435.33168851,0.00019,2]
[350506967,1737934265600,-19335.03,0.00019,2]
[350506968,1737934265609,-151.0,0.00019,2]
[350506969,1737934265619,-301.575643,0.00019,2]
[350506970,1737934265628,-301.575643,0.00019,2]
[350506971,1737934265637,-151.0,0.00019,2]
[350506972,1737934265648,-151.0,0.00019,2]
[350506973,1737934265657,-241.313591,0.00019,2]
[350506974,1737934265669,-303.00000303,0.00019,2]
[350506975,1737934265679,-303.00000303,0.00019,2]
[350506976,1737934265689,-1000.0,0.00019,2]
[350506977,1737934265698,-10842.51903562,0.00019034,2]
[350506978,1737934265707,-500.0,0.00019041,2]
[350506979,1737934265717,-1243.8,0.00019041,2]
[350506980,1737934265726,-248.61991,0.00019078,2]
[350506981,1737934265735,-151.0,0.00019078,2]
[350506982,1737934265745,-672.89525472,0.00019082,2]
[350506983,1737934265754,-583.08,0.00019086,2]
[350506984,1737934265764,-500.0,0.00019086,2]
[350506985,1737934265773,-500.0,0.00019086,2]
[350506986,1737934265783,-914.68,0.00019086,2]
[350506987,1737934265793,-637.95,0.00019086,2]
[350506988,1737934265802,-2881.33,0.00019086,2]
[350506989,1737934265811,-536.46,0.00019087,2]
[350506990,1737934265820,-9168.88,0.00019087,2]
[350506991,1737934265831,-2533.96,0.00019087,2]
[350506992,1737934265841,-1004.32,0.00019088,2]
[350506993,1737934265851,-65898.57434569,0.00019091,2]
[350506994,1737934265860,-151.0,0.00019091,2]
[350506995,1737934265869,-151.0,0.00019091,2]
[350506996,1737934265879,-301.575643,0.00019091,2]
[350506997,1737934265888,-301.575643,0.00019091,2]
[350506998,1737934265897,-151.0,0.00019091,2]
[350506999,1737934265907,-151.0,0.00019091,2]
[350507000,1737934265921,-587.0,0.00019093,2]
[350507001,1737934265932,-500.0,0.00019095,2]
[350507002,1737934265944,-16140.27389201,0.00019099,2]
[350507003,1737934265954,-11329.87,0.000191,2]
[350507004,1737934265963,-152.0,0.00019167,2]
[350507005,1737934265975,-153.0,0.00019169,2]
[350507006,1737934265984,-152.0,0.00019169,2]
[350507007,1737934265994,-152.0,0.00019169,2]
[350507008,1737934266004,-152.0,0.00019169,2]
[350507009,1737934266015,-152.0,0.00019169,2]
[350507010,1737934266025,-152.0,0.00019169,2]
[350507011,1737934266036,-152.0,0.00019169,2]
[350507012,1737934266045,-152.0,0.00019169,2]
[350507013,1737934266055,-152.0,0.00019169,2]
[350507014,1737934266064,-152.0,0.00019169,2]
[350507015,1737934266073,-3534.84486335,0.00019176,2]
[350507016,1737934266083,-537.89717247,0.00019177,4]
[350507017,1737934266092,-57590.51350277,0.00019178,2]
[350507018,1737934266101,-151.0,0.00019178,2]
[350507019,1737934266110,-151.0,0.00019178,2]
[350507020,1737934266120,-301.575643,0.00019178,2]
[350507021,1737934266129,-301.575643,0.00019178,2]
[350507022,1737934266139,-151.0,0.00019178,2]
[350507023,1737934266150,-151.0,0.00019178,2]
[350507024,1737934266159,-536.18,0.00019178,7]
[350507025,1737934266174,-500.0,0.00019178,2]
[350507026,1737934266184,-500.0,0.00019178,2]
[350507027,1737934266194,-500.0,0.00019178,2]
[350507028,1737934266204,-500.0,0.00019178,2]
[350507029,1737934266214,-500.0,0.00019178,2]
[350507030,1737934266224,-500.0,0.00019178,2]
[350507031,1737934266234,-500.0,0.00019178,2]
[350507032,1737934266244,-500.0,0.00019178,2]
[350507033,1737934266255,-501.92434233,0.00019178,2]
[350507034,1737934266264,-500.0,0.00019178,2]
[350507035,1737934266275,-500.0,0.00019178,2]
[350507036,1737934266285,-500.0,0.00019178,2]
[350507037,1737934266295,-500.0,0.00019178,2]
[350507038,1737934266305,-500.0,0.00019178,2]
[350507039,1737934266314,-500.0,0.00019178,2]
[350507040,1737934266324,-500.0,0.00019178,2]
[350507041,1737934266333,-500.0,0.00019178,2]
[350507042,1737934266343,-500.0,0.00019178,2]
[350507043,1737934266352,-500.0,0.00019178,2]
[350507044,1737934266361,-500.0,0.00019178,2]
[350507045,1737934266370,-625.09866515,0.00019178,2]
[350507046,1737934266380,-500.0,0.00019178,2]
[350507047,1737934266390,-500.0,0.00019178,2]
[350507048,1737934266471,-500.0,0.00019178,2]
[350507049,1737934266488,-500.0,0.00019178,2]
[350507050,1737934266497,-500.0,0.00019178,2]
[350507051,1737934266507,-500.0,0.00019178,2]
[350507052,1737934266516,-500.0,0.00019178,2]
[350507053,1737934266525,-500.0,0.00019178,2]
[350507054,1737934266535,-500.0,0.00019178,2]
[350507055,1737934266544,-500.0,0.00019178,2]
[350507056,1737934266554,-500.0,0.00019178,2]
[350507057,1737934266563,-540.92652597,0.00019178,2]
[350507058,1737934266572,-540.92652597,0.00019178,2]
[350507059,1737934266582,-540.92652597,0.00019178,2]
[350507060,1737934266591,-540.92652597,0.00019178,2]
[350507061,1737934266600,-540.92652597,0.00019178,2]
[350507062,1737934266610,-540.92652597,0.00019178,2]
[350507063,1737934266619,-540.92652597,0.00019178,2]
[350507064,1737934266629,-540.92652597,0.00019178,2]
[350507065,1737934266638,-540.92652597,0.00019178,2]
[350507066,1737934266647,-540.92652597,0.00019178,2]
[350507067,1737934266657,-540.92652597,0.00019178,2]
[350507068,1737934266670,-540.92652597,0.00019178,2]
[350507069,1737934266680,-540.92652597,0.00019178,2]
[350507070,1737934266688,-540.92652597,0.00019178,2]
[350507071,1737934266698,-540.92652597,0.00019178,2]
[350507072,1737934266707,-540.92652597,0.00019178,2]
[350507073,1737934266716,-540.92652597,0.00019178,2]
[350507074,1737934266726,-540.92652597,0.00019178,2]
[350507075,1737934266735,-540.92652597,0.00019178,2]
[350507076,1737934266744,-540.92652597,0.00019178,2]
[350507077,1737934266754,-540.92652597,0.00019178,2]
[350507078,1737934266763,-540.92652597,0.00019178,2]
[350507079,1737934266773,-540.92652597,0.00019178,2]
[350507080,1737934266782,-540.92652597,0.00019178,2]
[350507081,1737934266792,-540.92652597,0.00019178,2]
[350507082,1737934266802,-540.92652597,0.00019178,2]
[350507083,1737934266811,-540.92652597,0.00019178,2]
[350507084,1737934266821,-540.92652597,0.00019178,2]
[350507085,1737934266830,-540.92652597,0.00019178,2]
[350507086,1737934266840,-540.92652597,0.00019178,2]
[350507087,1737934266850,-540.92652597,0.00019178,2]
[350507088,1737934266859,-540.92652597,0.00019178,2]
[350507089,1737934266870,-540.92652597,0.00019178,2]
[350507090,1737934266880,-540.92652597,0.00019178,2]
[350507091,1737934266889,-540.92652597,0.00019178,2]
[350507092,1737934266900,-536.19030294,0.00019178,2]
[350507093,1737934266912,-536.19030294,0.00019178,2]
[350507094,1737934266921,-536.19030294,0.00019178,2]
[350507095,1737934266931,-536.19030294,0.00019178,2]
[350507096,1737934266942,-536.19030294,0.00019178,2]
[350507097,1737934266952,-536.19030294,0.00019178,2]
[350507098,1737934266962,-536.19030294,0.00019178,2]
[350507099,1737934266971,-536.19030294,0.00019178,2]
[350507100,1737934266982,-536.19030294,0.00019178,2]
[350507101,1737934266991,-536.19030294,0.00019178,2]
[350507102,1737934267001,-536.19030294,0.00019178,2]
[350507103,1737934267011,-536.19030294,0.00019178,2]
[350507104,1737934267021,-536.19030294,0.00019178,2]
[350507105,1737934267030,-536.19030294,0.00019178,2]
[350507106,1737934267040,-536.19030294,0.00019178,2]
[350507107,1737934267049,-536.19030294,0.00019178,2]
[350507108,1737934267059,-536.19030294,0.00019178,2]
[350507109,1737934267068,-536.19030294,0.00019178,2]
[350507110,1737934267078,-536.19030294,0.00019178,2]
[350507111,1737934267088,-536.19030294,0.00019178,2]
[350507112,1737934267098,-536.19030294,0.00019178,2]
[350507113,1737934267108,-536.19030294,0.00019178,2]
[350507114,1737934267117,-536.19030294,0.00019178,2]
[350507115,1737934267127,-536.19030294,0.00019178,2]
[350507116,1737934267137,-536.19030294,0.00019178,2]
[350507117,1737934267146,-536.19030294,0.00019178,2]
[350507118,1737934267155,-536.19030294,0.00019178,2]
[350507119,1737934267168,-536.19030294,0.00019178,2]
[350507120,1737934267178,-536.19030294,0.00019178,2]
[350507121,1737934267187,-536.19030294,0.00019178,2]
[350507122,1737934267197,-536.19030294,0.00019178,2]
[350507123,1737934267208,-619.56,0.00019178,2]
[350507124,1737934267218,-619.56,0.00019178,2]
[350507125,1737934267227,-619.56,0.00019178,2]
[350507126,1737934267237,-619.56,0.00019178,2]
[350507127,1737934267247,-619.56,0.00019178,2]
[350507128,1737934267256,-619.56,0.00019178,2]
[350507129,1737934267265,-619.56,0.00019178,2]
[350507130,1737934267275,-619.56,0.00019178,2]
[350507131,1737934267284,-619.56,0.00019178,2]
[350507132,1737934267294,-619.56,0.00019178,2]
[350507133,1737934267304,-619.56,0.00019178,2]
[350507134,1737934267313,-619.56,0.00019178,2]
[350507135,1737934267323,-619.56,0.00019178,2]
[350507136,1737934267333,-619.56,0.00019178,2]
[350507137,1737934267343,-619.56,0.00019178,2]
[350507138,1737934267353,-619.56,0.00019178,2]
[350507139,1737934267363,-619.56,0.00019178,2]
[350507140,1737934267372,-619.56,0.00019178,2]
[350507141,1737934267382,-619.56,0.00019178,2]
[350507142,1737934267392,-510.44,0.00019178,2]
[350507143,1737934267401,-1243.8,0.00019178,2]
[350507144,1737934267412,-384.238261,0.00019178,2]
[350507145,1737934267421,-2886.8256221,0.00019178,11]
[350507146,1737934267430,-303.00000303,0.0001919,2]
[350507147,1737934267440,-303.00000303,0.0001919,2]
[350507148,1737934267450,-583.08,0.00019223,2]
[350507149,1737934267460,-561.96,0.00019223,2]
[350507150,1737934267470,-500.0,0.00019223,2]
[350507151,1737934267480,-914.68,0.00019223,2]
[350507152,1737934267491,-637.95,0.00019223,2]
[350507153,1737934267500,-2881.33,0.00019223,2]
[350507154,1737934267510,-536.46,0.00019224,2]
[350507155,1737934267520,-9168.88,0.00019224,2]
[350507156,1737934267529,-2533.96,0.00019224,2]
[350507157,1737934267539,-151.0,0.00019224,2]
[350507158,1737934267549,-244.0,0.00019224,2]
[350507159,1737934267559,-1004.32,0.00019225,2]
[350507160,1737934267570,-619.56,0.00019225,2]
[350507161,1737934267580,-1017.84469899,0.00019293,2]
[350507162,1737934267590,-1243.8,0.00019315,2]
[350507163,1737934267600,-583.08,0.0001936,2]
[350507164,1737934267610,-500.0,0.0001936,2]
[350507165,1737934267620,-914.68,0.0001936,2]
[350507166,1737934267631,-637.95,0.0001936,2]
[350507167,1737934267640,-2881.33,0.0001936,2]
[350507168,1737934267650,-536.46,0.00019361,2]
[350507169,1737934267662,-9168.88,0.00019361,2]
[350507170,1737934267673,-2533.96,0.00019361,2]
[350507171,1737934267683,-1004.32,0.00019362,2]
[350507172,1737934267692,-619.56,0.00019362,2]
[350507173,1737934267701,-151.0,0.00019365,2]
[350507174,1737934267710,-500.0,0.00019369,2]
[350507175,1737934267720,-151.0,0.00019376,2]
[350507176,1737934267729,-151.0,0.0001938,2]
[350507177,1737934267739,-151.0,0.0001938,2]
[350507178,1737934267749,-303.00000303,0.0001938,2]
[350507179,1737934267759,-303.00000303,0.0001938,2]
[350507180,1737934267769,-3534.84486335,0.00019383,2]
[350507181,1737934267779,-301.575643,0.00019383,2]
[350507182,1737934267788,-301.575643,0.00019383,2]
[350507183,1737934267798,-604.16784221,0.00019396,2]
[350507184,1737934267807,-500.0,0.00019396,2]
[350507185,1737934267818,-151.6411976,0.00019396,2]
[350507186,1737934267827,-500.0,0.00019396,2]
[350507187,1737934267837,-500.0,0.00019396,2]
[350507188,1737934267847,-500.0,0.00019396,2]
[350507189,1737934267856,-439.0,0.000194,8]
[350507190,1737934267866,-1243.8,0.00019452,2]
[350507191,1737934267876,-583.08,0.00019497,2]
[350507192,1737934267886,-500.0,0.00019497,2]
[350507193,1737934267896,-914.68,0.00019497,2]
[350507194,1737934267905,-637.95,0.00019497,2]
[350507195,1737934267918,-2881.33,0.00019497,2]
[350507196,1737934268006,-536.46,0.00019498,2]
[350507197,1737934268016,-9168.88,0.00019498,2]
[350507198,1737934268030,-2533.96,0.00019498,2]
[350507199,1737934268039,-1004.32,0.00019499,2]
[350507200,1737934268049,-619.56,0.00019499,2]
[350507201,1737934268059,-835.9,0.000195,2]
[350507202,1737934268068,-1000.0,0.000195,2]
[350507203,1737934268078,-154.0,0.00019506,2]
[350507204,1737934268087,-154.0,0.00019506,2]
[350507205,1737934268097,-154.0,0.00019506,2]
[350507206,1737934268106,-10842.51903562,0.00019537,2]
[350507207,1737934268116,-303.00000303,0.0001957,2]
[350507208,1737934268126,-303.00000303,0.0001957,2]
[350507209,1737934268135,-1243.92905108,0.00019589,2]
[350507210,1737934268145,-3534.84486335,0.0001959,2]
[350507211,1737934268155,-1500.0,0.000196,2]
[350507212,1737934268167,-1500.0,0.000196,2]
[350507213,1737934268176,-1500.0,0.000196,2]
[350507214,1737934268185,-1500.0,0.000196,2]
[350507215,1737934268194,-1500.0,0.000196,2]
[350507216,1737934268203,-1500.0,0.000196,2]
[350507217,1737934268214,-1500.0,0.000196,2]
[350507218,1737934268223,-1500.0,0.000196,2]
[350507219,1737934268234,-1661.78,0.000196,2]
[350507220,1737934268245,-1500.0,0.000196,2]
[350507221,1737934268254,-1500.0,0.000196,2]
[350507222,1737934268264,-1180.37563947,0.00019615,2]
[350507223,1737934268274,-583.08,0.00019634,2]
[350507224,1737934268284,-500.0,0.00019634,2]
[350507225,1737934268293,-914.68,0.00019634,2]
[350507226,1737934268303,-637.95,0.00019634,2]
[350507227,1737934268313,-2881.33,0.00019634,2]
[350507228,1737934268323,-536.46,0.00019635,2]
[350507229,1737934268333,-9168.88,0.00019635,2]
[350507230,1737934268343,-2533.96,0.00019635,2]
[350507231,1737934268353,-1004.32,0.00019636,2]
[350507232,1737934268364,-619.56,0.00019636,2]
[350507233,1737934268373,-151.0,0.00019639,2]
[350507234,1737934268382,-500.0,0.00019643,2]
[350507235,1737934268391,-8521.0,0.000197,2]
[350507236,1737934268401,-151.0,0.000197,2]
[350507237,1737934268411,-2000.0,0.0001972,2]
[350507238,1737934268423,-303.00000303,0.0001976,2]
[350507239,1737934268433,-303.00000303,0.0001976,2]
[350507240,1737934268443,-583.28,0.00019771,2]
[350507241,1737934268452,-326.18544023,0.00019771,2]
[350507242,1737934268462,-914.86504106,0.00019771,2]
[350507243,1737934268472,-638.02,0.00019771,2]
[350507244,1737934268482,-2881.42349522,0.00019771,2]
[350507245,1737934268492,-536.58,0.00019772,2]
[350507246,1737934268502,-9169.0676919,0.00019772,2]
[350507247,1737934268512,-2534.10582851,0.00019772,2]
[350507248,1737934268521,-1004.454264,0.00019773,2]
[350507249,1737934268531,-619.67119319,0.00019773,2]
[350507250,1737934268541,-301.575643,0.0001978,2]
[350507251,1737934268551,-301.575652,0.0001978,2]
[350507252,1737934268561,-1362.742186,0.0001978,5]
[350507253,1737934268571,-3534.84486335,0.00019797,2]
[350507254,1737934268580,-70592.760936,0.000198,2]
[350507255,1737934268590,-50000.0,0.000198,2]
[350507256,1737934268600,-151.0,0.000198,2]
[350507257,1737934268610,-151.0,0.000198,2]
[350507258,1737934268619,-1000.0,0.000198,5]
[350507259,1737934268629,-500.0,0.000198,15]
[350507260,1737934268639,-154.0344268,0.00019808,2]
[350507261,1737934268648,-1000.0,0.0001982,5]
[350507262,1737934268657,-1000.0,0.0001984,5]
[350507263,1737934268667,-1000.0,0.0001986,5]
[350507264,1737934268676,-536.18,0.00019863,9]
[350507265,1737934268693,-1000.0,0.0001988,5]
[350507266,1737934268712,-16787.90548344,0.00019888,7]
[350507267,1737934268727,-1000.0,0.000199,5]
[350507268,1737934268745,-159.18980919,0.000199,2]
[350507269,1737934268762,-500.0,0.00019917,2]
[350507270,1737934268781,-330.5863245,0.00019918,2]
[350507271,1737934268797,-1000.0,0.0001992,5]
[350507272,1737934268813,-1000.0,0.0001994,5]
[350507273,1737934268829,-1000.0,0.00019944,2]
[350507274,1737934268841,-1000.0,0.00019944,2]
[350507275,1737934268856,-1000.0,0.00019944,2]
[350507276,1737934268873,-1000.0,0.00019944,2]
[350507277,1737934268890,-454.50000455,0.0001995,4]
[350507278,1737934268909,-454.50000455,0.0001995,4]
[350507279,1737934268926,-672.89525472,0.0001995,2]
[350507280,1737934268941,-1000.0,0.0001996,5]
[350507281,1737934268960,-500.0,0.00019973,2]
[350507282,1737934268973,-500.0,0.00019973,2]
[350507283,1737934268990,-500.0,0.00019973,2]
[350507284,1737934269003,-500.67709918,0.00019973,2]
[350507285,1737934269017,-500.0,0.00019973,2]
[350507286,1737934269032,-500.0,0.00019973,2]
[350507287,1737934269048,-500.0,0.00019973,2]
[350507288,1737934269063,-500.0,0.00019973,2]
[350507289,1737934269079,-430.06210241,0.00019973,2]
[350507290,1737934269093,-500.0,0.00019973,2]
[350507291,1737934269108,-500.0,0.00019973,2]
[350507292,1737934269123,-151.1800754,0.00019973,2]
[350507293,1737934269137,-500.0,0.00019973,2]
[350507294,1737934269151,-500.0,0.00019973,2]
[350507295,1737934269169,-329.87330357,0.00019973,2]
[350507296,1737934269183,-500.0,0.00019973,2]
[350507297,1737934269198,-500.0,0.00019973,2]
[350507298,1737934269213,-215.3965244,0.00019973,2]
[350507299,1737934269227,-215.3965244,0.00019973,2]
[350507300,1737934269241,-4421.66085348,0.0001998,2]
[350507301,1737934269367,-2061.0,0.0001998,2]
[350507302,1737934269818,434.28,0.00010959,2]
[350507305,1737934747855,2162.12967295,0.00014972,2]
[350507306,1737934747888,10000.0,0.00014972,2]
[350507307,1737934747915,1024.69221145,0.00014972,2]
[350507308,1737934748187,13186.8218844,0.0001507,2]
[350507309,1737934853938,461.96632774,0.00015049,2]
[350507310,1737935003840,164.808052,0.00013973,2]
[350507312,1737935282770,291.706,0.00015098,2]
[350507357,1737935432817,-300.0,0.000152,2]
[350507359,1737935432826,-240.187484,0.00015201,2]
[350507361,1737935432835,-2191.38782467,0.00015201,2]
[350507363,1737935432847,-360.41287851,0.00015201,2]
[350507365,1737935432858,-5154.8107125,0.00015201,2]
[350507383,1737935433025,-455.41176917,0.00015201,2]
[350507385,1737935433037,-15426.86202623,0.00015201,2]
[350507387,1737935433048,-1311.11478892,0.00015201,2]
[350507390,1737935433058,-13186.8218844,0.00015527,2]
[350507392,1737935433068,-362.90003859,0.00015553,2]
[350507394,1737935433077,-13186.8218844,0.00015653,2]
[350507396,1737935433086,-8284.53062274,0.00016095,2]
[350507398,1737935433098,-4902.29126166,0.00016095,2]
[350507400,1737935433108,-13186.8218844,0.00016184,2]
[350507402,1737935433118,-500.0,0.00016437,2]
[350507404,1737935433127,-500.0,0.00016437,2]
[350507406,1737935433137,-327.22204864,0.00016437,2]
[350507407,1737935433146,-500.0,0.00016437,2]
[350507408,1737935433159,-518.00728866,0.00016437,2]
[350507409,1737935433169,-500.0,0.00016437,2]
[350507410,1737935433178,-500.0,0.00016437,2]
[350507411,1737935433188,-500.0,0.00016437,2]
[350507412,1737935433197,-500.0,0.00016437,2]
[350507413,1737935433207,-500.0,0.00016437,2]
[350507414,1737935433216,-500.0,0.00016437,2]
[350507415,1737935433225,-500.0,0.00016437,2]
[350507416,1737935433235,-399.80108945,0.00016437,2]
[350507417,1737935433244,-500.0,0.00016437,2]
[350507418,1737935433253,-500.0,0.00016437,2]
[350507419,1737935433262,-260.02435769,0.00016437,2]
[350507420,1737935433273,-500.0,0.00016437,2]
[350507421,1737935433286,-500.0,0.00016437,2]
[350507422,1737935433297,-500.0,0.00016437,2]
[350507423,1737935433307,-500.0,0.00016437,2]
[350507424,1737935433317,-514.06068051,0.00016438,2]
[350507425,1737935433327,-500.0,0.00016438,2]
[350507426,1737935433336,-500.0,0.00016438,2]
[350507427,1737935433347,-500.0,0.00016438,2]
[350507429,1737935433356,-500.0,0.00016438,2]
[350507430,1737935433367,-500.0,0.00016438,2]
[350507432,1737935433377,-500.0,0.00016438,2]
[350507434,1737935433387,-503.88895537,0.00016438,2]
[350507437,1737935433397,-500.0,0.00016438,2]
[350507439,1737935433411,-500.0,0.00016438,2]
[350507441,1737935433420,-500.0,0.00016438,2]
[350507443,1737935433429,-500.0,0.00016438,2]
[350507444,1737935433438,-500.0,0.00016438,2]
[350507447,1737935433448,-500.0,0.00016438,2]
[350507449,1737935433458,-500.0,0.00016438,2]
[350507451,1737935433468,-500.0,0.00016438,2]
[350507453,1737935433478,-500.0,0.00016438,2]
[350507454,1737935433487,-500.0,0.00016438,2]
[350507456,1737935433496,-500.0,0.00016438,2]
[350507459,1737935433507,-500.0,0.00016438,2]
[350507461,1737935433516,-410.06648433,0.00016438,2]
[350507463,1737935433526,-500.0,0.00016438,2]
[350507465,1737935433536,-500.0,0.00016438,2]
[350507467,1737935433547,-500.0,0.00016438,2]
[350507469,1737935433556,-500.0,0.00016438,2]
[350507471,1737935433565,-500.0,0.00016438,2]